fUST/lending_fUST_20240720
["ID","MTS","AMOUNT","RATE_DAILY","PERIOD"]
[332682662,1721437841630,-500.0,0.00016424,2]
[332682663,1721437841640,-500.0,0.00016424,2]
[332682664,1721437841650,-500.0,0.00016424,2]
[332682665,1721437841661,-500.0,0.00016424,2]
[332682666,1721437841670,-500.0,0.00016424,2]
[332682667,1721437841682,-44764.29937208,0.00016425,2]
[332682668,1721437841691,-74175.30812653,0.00016428,2]
[332682669,1721437841704,-37121.21051429,0.00016428,2]
[332682851,1721438557451,941.25374337,9.999e-05,2]
[332682852,1721438615952,941.25374337,0.0001212,2]
[332682855,1721438752257,-400.83911048,0.00014691,2]
[332682856,1721438752280,-837.97598697,0.00014691,2]
[332682857,1721438755142,155.0,0.000225,30]
[332682860,1721438805372,166.666668,9.999e-05,2]
[332682861,1721438827347,-500.53764773,0.0001469,2]
[332682862,1721438827368,-800.41583289,0.00014691,2]
[332682863,1721438827389,-6236.4309668,0.00014773,2]
[332682864,1721438827411,-166.666666,0.00014795,2]
[332682865,1721438827432,-1166.8180274,0.00014839,2]
[332682866,1721438827455,-167.503048,0.0001485,2]
[332682867,1721438827477,-167.503048,0.00014906,2]
[332682868,1721438827499,-167.503048,0.00014961,2]
[332682869,1721438827520,-300.0,0.00015015,2]
[332682870,1721438827543,-167.503048,0.00015016,2]
[332682871,1721438827565,-167.503048,0.00015071,2]
[332682872,1721438827587,-153.0,0.000151,2]
[332682873,1721438827608,-167.503048,0.00015127,2]
[332682874,1721438827630,-167.503048,0.00015182,2]
[332682875,1721438827652,-167.503048,0.00015237,2]
[332682876,1721438827674,-167.503048,0.00015293,2]
[332682877,1721438827695,-167.503048,0.00015348,2]
[332682878,1721438827715,-358.712773,0.00015364,2]
[332682879,1721438827737,-167.503048,0.00015403,2]
[332682880,1721438827760,-167.503048,0.00015458,2]
[332682881,1721438827783,-167.503048,0.00015514,2]
[332682882,1721438827805,-167.503048,0.00015569,2]
[332682883,1721438827826,-153.0,0.00015616,2]
[332682884,1721438827847,-153.0,0.00015616,2]
[332682885,1721438827869,-441.5883714,0.00015616,2]
[332682886,1721438827891,-167.503048,0.00015624,2]
[332682887,1721438827914,-1628.0642344,0.00015708,2]
[332682888,1721438827935,-245.0,0.0001571,2]
[332682889,1721438827956,-389.59119223,0.00015712,2]
[332682890,1721438827978,-153.0,0.00015741,2]
[332682891,1721438827998,-262.32646256,0.00015744,2]
[332682892,1721438828019,-245.0,0.00015744,2]
[332682893,1721438828040,-206.5463282,0.00015878,2]
[332682894,1721438828061,-5302.51874707,0.00015919,2]
[332682895,1721438828081,-153.0,0.00016,2]
[332682896,1721438828102,-367.2522507,0.00016035,2]
[332682897,1721438828124,-1279.55467636,0.00016328,2]
[332682898,1721438828144,-1945.47989268,0.00016337,2]
[332682899,1721438828167,-1982.08847559,0.00016338,2]
[332682900,1721438828187,-307.39520655,0.00016338,2]
[332682901,1721438828213,-293.756678,0.000164,2]
[332682902,1721438828233,-206.5463282,0.000164,2]
[332682903,1721438828255,-412.9331954,0.000164,2]
[332682904,1721438828276,-410.760979,0.000164,2]
[332682905,1721438828297,-450.0,0.00016427,2]
[332682906,1721438828321,-5245.28347746,0.00016428,2]
[332682907,1721438828351,-3175.84068028,0.00016428,2]
[332682909,1721438831095,-502.27951871,0.00016428,2]
[332682910,1721438836127,-153.0,0.00015641,2]
[332682911,1721438836149,-206.5463282,0.00015778,2]
[332682912,1721438836174,-2711.3377618,0.00016428,2]
[332682913,1721438839195,-166.666668,0.00016428,2]
[332682914,1721438851101,-750.0,0.00016428,2]
[332682915,1721438852100,-10806.03758688,0.00016428,2]
[332682917,1721438889919,819.26,0.00010959,2]
[332682920,1721439026897,155.00719132,0.00013283,2]
[332682960,1721439032177,-258.18004786,0.00015434,2]
[332682962,1721439032189,-1535.62165294,0.00015434,2]
[332682964,1721439032199,-1380.44454006,0.00015555,2]
[332682966,1721439032211,-2320.61081994,0.00015555,2]
[332682968,1721439032220,-1119.61034185,0.00016328,2]
[332682970,1721439032231,-1245.0080096,0.00016428,2]
[332682984,1721439033441,10.39847168,0.00013283,2]
[332682985,1721439033463,144.52380696,0.00013283,2]
[332682986,1721439033669,150.75878594,0.00021096,30]
[332682987,1721439034057,150.75878594,0.00020674,120]
[332682992,1721439038833,-396.94075158,0.00016428,2]
[332683010,1721439040468,-105361.01197282,0.00016428,2]
[332683011,1721439040478,-6035.16803291,0.00016428,2]
[332683028,1721439043327,-9984.33602866,0.00016428,2]
[332683029,1721439044350,-1814.32272743,0.00016428,2]
[332683030,1721439044360,-1408.0,0.00016434,2]
[332683031,1721439044370,-150.707,0.00016434,2]
[332683032,1721439044381,-504.0,0.00016434,2]
[332683033,1721439044392,-500.0,0.00016437,2]
[332683034,1721439044402,-500.0,0.00016437,2]
[332683035,1721439044414,-238.46915365,0.00016437,2]
[332683036,1721439044425,-500.0,0.00016437,2]
[332683037,1721439044435,-181.4385026,0.00016437,2]
[332683038,1721439044444,-342.92277474,0.00016437,2]
[332683039,1721439044456,-157.07722526,0.00016437,2]
[332683040,1721439044465,-500.0,0.00016437,2]
[332683041,1721439044475,-474.79613976,0.00016437,2]
[332683042,1721439044484,-483.21051892,0.00016437,2]
[332683043,1721439044493,-500.0,0.00016437,2]
[332683044,1721439044502,-27.74869616,0.00016438,2]
[332683075,1721439048738,183.00803683,0.000249,120]
[332683078,1721439224154,3379.211,0.0002477,120]
[332683079,1721439224212,884.485,0.0002452,120]
[332683080,1721439224280,3379.211,0.0002477,120]
[332683081,1721439224311,884.486,0.0002452,120]
[332683082,1721439224356,3379.211,0.0002477,120]
[332683083,1721439224388,884.485,0.0002452,120]
[332683084,1721439224423,884.485,0.0002452,120]
[332683085,1721439224457,3379.212,0.0002477,120]
[332683086,1721439224494,3379.212,0.0002477,120]
[332683087,1721439224525,884.485,0.0002452,120]
[332683088,1721439258625,150.75878594,0.00019803,30]
[332683089,1721439258716,150.75878594,0.00019407,120]
[332683090,1721439508114,150.74373565,0.00019949,30]
[332683091,1721439508172,150.74373565,0.0001955,120]
[332683094,1721439914425,150.72868836,0.00020108,30]
[332683095,1721439914461,150.72868836,0.00019706,120]
[332683096,1721439948337,-166.666666,0.00014795,2]
[332683097,1721439948361,-164.7306352,0.00015014,2]
[332683098,1721439948387,-165.037622,0.00015053,2]
[332683099,1721439948414,-165.037622,0.000151,2]
[332683100,1721439948439,-165.037622,0.00015146,2]
[332683101,1721439948465,-165.037622,0.00015192,2]
[332683102,1721439948491,-165.037622,0.00015238,2]
[332683103,1721439948516,-165.037622,0.00015284,2]
[332683104,1721439948542,-127.44130821,0.0001533,2]
[332683105,1721439953069,994.11273453,9.999e-05,2]
[332683106,1721440029106,-403.79584072,0.00015,2]
[332683107,1721440029128,-11.09391983,0.0001533,2]
[332683108,1721440034166,-26.50239396,0.0001533,2]
[332683109,1721440034189,-887.61771083,0.00015334,2]
[332683110,1721440034212,-165.037622,0.00015376,2]
[332683111,1721440034235,-165.037622,0.00015423,2]
[332683112,1721440034257,-165.037622,0.00015469,2]
[332683113,1721440034284,-125.18949758,0.00015515,2]
[332683114,1721440035094,-39.84812442,0.00015515,2]
[332683115,1721440035117,-165.037622,0.00015561,2]
[332683116,1721440035141,-165.037622,0.00015607,2]
[332683117,1721440035166,-165.037622,0.00015653,2]
[332683118,1721440035498,-165.037622,0.00015699,2]
[332683119,1721440035521,-253.34743253,0.00015708,2]
[332683120,1721440035543,-156.8622174,0.00015744,2]
[332683121,1721440035565,-162.09225294,0.00015744,2]
[332683122,1721440035587,-165.037622,0.00015745,2]
[332683123,1721440035609,-165.037622,0.00015792,2]
[332683124,1721440035631,-165.037622,0.00015838,2]
[332683125,1721440035652,-153.0,0.00015941,2]
[332683126,1721440035673,-212.1798136,0.00016078,2]
[332683127,1721440035695,-206.5463282,0.00016078,2]
[332683128,1721440035719,-272.19606732,0.0001611,2]
[332683129,1721440035740,-5303.4494987,0.00016209,2]
[332683130,1721440035761,-367.31035882,0.00016248,2]
[332683131,1721440035782,-153.0,0.00016252,2]
[332683132,1721440035803,-624.56478235,0.00016282,2]
[332683133,1721440035824,-1131.33221507,0.00016328,2]
[332683134,1721440035845,-1784.07141935,0.00016338,2]
[332683135,1721440035866,-203.1353153,0.00016338,2]
[332683136,1721440035888,-4001.22428614,0.00016347,2]
[332683137,1721440035920,-1002.22088994,0.00016427,2]
[332683138,1721440035945,-42501.5289835,0.00016428,2]
[332683139,1721440035968,-12143.2939953,0.00016428,2]
[332683140,1721440035989,-1408.0,0.00016434,2]
[332683141,1721440036010,-150.721,0.00016434,2]
[332683142,1721440036034,-504.0,0.00016434,2]
[332683143,1721440036056,-506.11394312,0.00016438,2]
[332683144,1721440036078,-500.0,0.00016438,2]
[332683145,1721440036101,-500.0,0.00016438,2]
[332683146,1721440036123,-810.45,0.00016438,2]
[332683147,1721440036145,-508.09394379,0.00016438,2]
[332683148,1721440036169,-197.63168581,0.00016438,2]
[332683149,1721440036191,-609.52367989,0.00016438,2]
[332683150,1721440036214,-500.0,0.00016438,2]
[332683151,1721440036239,-500.0,0.00016438,2]
[332683152,1721440036262,-503.55316172,0.00016438,2]
[332683153,1721440036286,-737.34,0.00016438,2]
[332683154,1721440036307,-501.64253833,0.00016438,2]
[332683155,1721440036331,-500.0,0.00016438,2]
[332683156,1721440036355,-500.0,0.00016438,2]
[332683157,1721440036376,-500.0,0.00016438,2]
[332683158,1721440036398,-500.0,0.00016438,2]
[332683159,1721440036420,-510.61609016,0.00016438,2]
[332683160,1721440036444,-500.0,0.00016438,2]
[332683161,1721440036466,-500.0,0.00016438,2]
[332683162,1721440036488,-500.0,0.00016438,2]
[332683163,1721440036511,-500.0,0.00016438,2]
[332683164,1721440036533,-500.0,0.00016438,2]
[332683165,1721440036557,-500.0,0.00016438,2]
[332683166,1721440036578,-500.0,0.00016438,2]
[332683167,1721440036599,-500.0,0.00016438,2]
[332683168,1721440036621,-388.77299112,0.00016438,2]
[332683169,1721440036642,-500.0,0.00016438,2]
[332683170,1721440036665,-500.0,0.00016438,2]
[332683171,1721440036687,-381.21198987,0.00016438,2]
[332683172,1721440036712,-500.0,0.00016438,2]
[332683173,1721440036734,-500.0,0.00016438,2]
[332683174,1721440036756,-528.36,0.00016438,2]
[332683175,1721440036778,-500.0,0.00016438,2]
[332683176,1721440036800,-182.45544952,0.00016438,2]
[332683177,1721440036821,-2513.59,0.00016438,2]
[332683178,1721440036842,-633.52,0.00016438,2]
[332683179,1721440036863,-500.0,0.00016438,2]
[332683180,1721440036884,-554.97,0.00016438,2]
[332683181,1721440036905,-434.96659667,0.00016438,2]
[332683182,1721440036926,-500.0,0.00016438,2]
[332683183,1721440036947,-500.0,0.00016438,2]
[332683184,1721440036969,-500.0,0.00016438,2]
[332683185,1721440036990,-500.0,0.00016438,2]
[332683186,1721440037011,-500.0,0.00016438,2]
[332683187,1721440037033,-500.0,0.00016438,2]
[332683188,1721440037054,-500.0,0.00016438,2]
[332683189,1721440037075,-542.72,0.00016438,2]
[332683190,1721440037096,-555.42,0.00016438,2]
[332683191,1721440037117,-500.0,0.00016438,2]
[332683192,1721440037138,-500.0,0.00016438,2]
[332683193,1721440037162,-2254.38,0.00016438,2]
[332683194,1721440037183,-500.0,0.00016438,2]
[332683195,1721440037207,-500.0,0.00016438,2]
[332683196,1721440037229,-500.0,0.00016438,2]
[332683197,1721440037251,-500.0,0.00016438,2]
[332683198,1721440037274,-423.73046473,0.00016438,2]
[332683199,1721440037296,-500.0,0.00016438,2]
[332683200,1721440037318,-674.05,0.00016438,2]
[332683201,1721440037341,-1084.95,0.00016438,2]
[332683202,1721440037364,-1332.28,0.00016438,2]
[332683203,1721440037385,-215.1881296,0.00016438,2]
[332683204,1721440037409,-500.0,0.00016438,2]
[332683205,1721440037432,-721.92,0.00016438,2]
[332683206,1721440037454,-500.0,0.00016438,2]
[332683207,1721440037476,-500.0,0.00016438,2]
[332683208,1721440037498,-657.04,0.00016438,2]
[332683209,1721440037519,-500.0,0.00016438,2]
[332683210,1721440037541,-500.0,0.00016438,2]
[332683211,1721440037563,-500.0,0.00016438,2]
[332683212,1721440037586,-500.0,0.00016438,2]
[332683213,1721440037608,-500.0,0.00016438,2]
[332683214,1721440037630,-500.0,0.00016438,2]
[332683215,1721440037652,-500.0,0.00016438,2]
[332683216,1721440037674,-500.0,0.00016438,2]
[332683217,1721440037699,-500.0,0.00016438,2]
[332683218,1721440037720,-500.0,0.00016438,2]
[332683219,1721440037743,-500.0,0.00016438,2]
[332683220,1721440037764,-500.0,0.00016438,2]
[332683221,1721440037789,-455.75116135,0.00016438,2]
[332683222,1721440037814,-500.0,0.00016438,2]
[332683223,1721440037838,-501.62557961,0.00016438,2]
[332683224,1721440037860,-619.09,0.00016438,2]
[332683225,1721440037882,-500.0,0.00016438,2]
[332683226,1721440037904,-342.45378004,0.00016438,2]
[332683227,1721440037925,-501.72983271,0.00016438,2]
[332683228,1721440037946,-503.304429,0.00016438,2]
[332683229,1721440037967,-500.0,0.00016438,2]
[332683230,1721440037988,-526.69,0.00016438,2]
[332683231,1721440038009,-500.0,0.00016438,2]
[332683232,1721440038035,-1131.98,0.00016438,2]
[332683233,1721440038057,-502.63355936,0.00016438,2]
[332683234,1721440038079,-500.0,0.00016438,2]
[332683235,1721440038102,-500.0,0.00016438,2]
[332683236,1721440038123,-500.0,0.00016438,2]
[332683237,1721440038144,-500.0,0.00016438,2]
[332683238,1721440038167,-526.07354938,0.00016438,2]
[332683239,1721440038191,-500.0,0.00016438,2]
[332683240,1721440038214,-861.3,0.00016438,2]
[332683241,1721440038238,-500.0,0.00016438,2]
[332683242,1721440038261,-500.0,0.00016438,2]
[332683243,1721440038283,-500.0,0.00016438,2]
[332683244,1721440038304,-2706.33,0.00016438,2]
[332683245,1721440038324,-1064.05,0.00016438,2]
[332683246,1721440038346,-500.0,0.00016438,2]
[332683247,1721440038367,-500.0,0.00016438,2]
[332683248,1721440038390,-500.0,0.00016438,2]
[332683249,1721440038418,-500.0,0.00016438,2]
[332683250,1721440038440,-649.4,0.00016438,2]
[332683251,1721440038462,-501.32922508,0.00016438,2]
[332683252,1721440038483,-499.97734961,0.00016438,2]
[332683253,1721440038504,-1381.41,0.00016438,2]
[332683254,1721440038525,-512.93851529,0.00016438,2]
[332683255,1721440038552,-505.35435945,0.00016438,2]
[332683256,1721440038575,-562.63316697,0.00016438,2]
[332683257,1721440038596,-503.94894048,0.00016438,2]
[332683258,1721440038617,-501.21143146,0.00016438,2]
[332683259,1721440038638,-160.47252386,0.00016438,2]
[332683260,1721440038659,-500.0,0.00016438,2]
[332683261,1721440038680,-500.0,0.00016438,2]
[332683262,1721440038703,-500.0,0.00016438,2]
[332683263,1721440038725,-500.0,0.00016438,2]
[332683264,1721440038748,-500.0,0.00016438,2]
[332683265,1721440038769,-500.0,0.00016438,2]
[332683266,1721440038793,-502.26881878,0.00016438,2]
[332683267,1721440038814,-500.0,0.00016438,2]
[332683268,1721440038835,-500.0,0.00016438,2]
[332683269,1721440038857,-500.0,0.00016438,2]
[332683270,1721440038881,-500.0,0.00016438,2]
[332683271,1721440038905,-601.67470916,0.00016438,2]
[332683272,1721440038928,-500.0,0.00016438,2]
[332683273,1721440038950,-219.09698425,0.00016438,2]
[332683274,1721440038972,-500.0,0.00016438,2]
[332683275,1721440038993,-500.0,0.00016438,2]
[332683276,1721440039014,-500.0,0.00016438,2]
[332683277,1721440039035,-502.6788065,0.00016438,2]
[332683278,1721440039055,-500.0,0.00016438,2]
[332683279,1721440039077,-1343.4,0.00016438,2]
[332683280,1721440039099,-687.71,0.00016438,2]
[332683281,1721440039121,-500.0,0.00016438,2]
[332683282,1721440039143,-507.40824382,0.00016438,2]
[332683283,1721440039166,-1359.05,0.00016438,2]
[332683284,1721440039191,-500.0,0.00016438,2]
[332683285,1721440039211,-500.0,0.00016438,2]
[332683286,1721440039232,-500.0,0.00016438,2]
[332683287,1721440039253,-501.71905467,0.00016438,2]
[332683288,1721440039275,-520.92944104,0.00016438,2]
[332683289,1721440039296,-500.0,0.00016438,2]
[332683290,1721440039318,-1288.54,0.00016438,2]
[332683291,1721440039340,-500.0,0.00016438,2]
[332683292,1721440039362,-649.45,0.00016438,2]
[332683293,1721440039383,-500.0,0.00016438,2]
[332683294,1721440039406,-526.16,0.00016438,2]
[332683295,1721440039605,-1398.75,0.00016438,2]
[332683296,1721440039626,-560.73301691,0.00016438,2]
[332683297,1721440039648,-500.0,0.00016438,2]
[332683298,1721440039670,-512.07655604,0.00016438,2]
[332683299,1721440039691,-1544.45,0.00016438,2]
[332683300,1721440039719,-500.0,0.00016438,2]
[332683301,1721440039742,-500.0,0.00016438,2]
[332683302,1721440039763,-384.92364276,0.00016438,2]
[332683303,1721440039785,-500.0,0.00016438,2]
[332683304,1721440039807,-1585.07,0.00016438,2]
[332683305,1721440039828,-500.0,0.00016438,2]
[332683306,1721440039849,-3018.89,0.00016438,2]
[332683307,1721440039869,-537.77,0.00016438,2]
[332683308,1721440039890,-500.0,0.00016438,2]
[332683309,1721440039911,-831.28,0.00016438,2]
[332683310,1721440039932,-1042.9,0.00016438,2]
[332683311,1721440039953,-873.53,0.00016438,2]
[332683312,1721440039974,-674.4,0.00016438,2]
[332683313,1721440039995,-726.92,0.00016438,2]
[332683314,1721440040015,-503.12388037,0.00016438,2]
[332683315,1721440040035,-500.0,0.00016438,2]
[332683316,1721440040056,-517.04,0.00016438,2]
[332683317,1721440040076,-500.0,0.00016438,2]
[332683318,1721440040097,-500.0,0.00016438,2]
[332683319,1721440040117,-500.0,0.00016438,2]
[332683320,1721440040138,-500.0,0.00016438,2]
[332683321,1721440040159,-1215.1,0.00016438,2]
[332683322,1721440040180,-500.0,0.00016438,2]
[332683323,1721440040200,-2465.82,0.00016438,2]
[332683324,1721440040221,-1327.1,0.00016438,2]
[332683325,1721440040242,-500.0,0.00016438,2]
[332683326,1721440040262,-500.0,0.00016438,2]
[332683327,1721440040283,-921.69,0.00016438,2]
[332683328,1721440040306,-500.0,0.00016438,2]
[332683329,1721440040326,-500.0,0.00016438,2]
[332683330,1721440040347,-500.0,0.00016438,2]
[332683331,1721440040369,-535.05,0.00016438,2]
[332683332,1721440040389,-2543.76,0.00016438,2]
[332683333,1721440040413,-638.73440245,0.00016438,2]
[332683334,1721440040433,-1938.6,0.00016438,2]
[332683335,1721440040453,-500.0,0.00016438,2]
[332683336,1721440040473,-500.0,0.00016438,2]
[332683337,1721440040494,-592.94,0.00016438,2]
[332683338,1721440040515,-852.34,0.00016438,2]
[332683339,1721440040536,-500.0,0.00016438,2]
[332683340,1721440040558,-500.0,0.00016438,2]
[332683341,1721440040579,-564.5,0.00016438,2]
[332683342,1721440040600,-500.0,0.00016438,2]
[332683343,1721440040622,-500.0,0.00016438,2]
[332683344,1721440040645,-349.71618938,0.00016438,2]
[332683345,1721440040667,-3184.18,0.00016438,2]
[332683346,1721440040689,-504.22204108,0.00016438,2]
[332683347,1721440040712,-500.0,0.00016438,2]
[332683348,1721440040735,-500.0,0.00016438,2]
[332683349,1721440040757,-126.83592048,0.00016438,2]
[332683350,1721440041089,154.95248231,9.999e-05,2]
[332683351,1721440042327,-745.91407952,0.00016438,2]
[332683352,1721440042350,-579.55,0.00016438,2]
[332683353,1721440042370,-500.98459521,0.00016438,2]
[332683354,1721440042391,-990.93,0.00016438,2]
[332683355,1721440042414,-38.09751831,0.00016438,2]
[332683356,1721440043112,-405.35608116,0.00016438,2]
[332683357,1721440052129,-56.54640053,0.00016438,2]
[332683358,1721440052152,-500.0,0.00016438,2]
[332683359,1721440052174,-193.45359947,0.00016438,2]
[332683360,1721440052213,-306.54640053,0.00016438,2]
[332683361,1721440052233,-1169.64,0.00016438,2]
[332683362,1721440052253,-2091.43,0.00016438,2]
[332683363,1721440052274,-500.0,0.00016438,2]
[332683364,1721440052294,-500.0,0.00016438,2]
[332683365,1721440052315,-1856.65,0.00016438,2]
[332683366,1721440052336,-500.0,0.00016438,2]
[332683367,1721440052356,-500.0,0.00016438,2]
[332683368,1721440052376,-500.0,0.00016438,2]
[332683369,1721440052397,-500.0,0.00016438,2]
[332683370,1721440052417,-500.0,0.00016438,2]
[332683371,1721440052438,-756.68,0.00016438,2]
[332683372,1721440052458,-500.0,0.00016438,2]
[332683373,1721440052478,-644.89,0.00016438,2]
[332683374,1721440052500,-485.93658947,0.00016438,2]
[332683377,1721440208356,165.405663,0.00010959,2]
[332683378,1721440208377,52.044337,0.00010959,2]
[332683408,1721440233515,-1235.22674534,0.00016338,2]
[332683410,1721440233525,-3112.60604679,0.00016428,2]
[332683412,1721440233535,-1729.22558155,0.00016428,2]
[332683414,1721440233545,-1408.0,0.00016434,2]
[332683416,1721440233555,-666.52341053,0.00016438,2]
[332683418,1721440233565,-687.66,0.00016438,2]
[332683421,1721440233585,-500.0,0.00016438,2]
[332683423,1721440233597,-516.32545416,0.00016438,2]
[332683426,1721440233608,-4250.75,0.00016438,2]
[332683428,1721440233618,-656.83,0.00016438,2]
[332683430,1721440233628,-501.18551963,0.00016438,2]
[332683432,1721440233640,-500.0,0.00016438,2]
[332683434,1721440233650,-501.68085833,0.00016438,2]
[332683436,1721440233660,-3208.37,0.00016438,2]
[332683438,1721440233671,-1501.41,0.00016438,2]
[332683440,1721440233680,-500.0,0.00016438,2]
[332683442,1721440233690,-500.0,0.00016438,2]
[332683444,1721440233700,-500.0,0.00016438,2]
[332683446,1721440233710,-500.0,0.00016438,2]
[332683448,1721440233720,-504.84141319,0.00016438,2]
[332683450,1721440233731,-500.0,0.00016438,2]
[332683452,1721440233747,-500.0,0.00016438,2]
[332683454,1721440233756,-500.0,0.00016438,2]
[332683457,1721440233767,-512.76377945,0.00016438,2]
[332683459,1721440233778,-1142.77,0.00016438,2]
[332683461,1721440233790,-586.34,0.00016438,2]
[332683463,1721440233800,-500.0,0.00016438,2]
[332683465,1721440233810,-500.0,0.00016438,2]
[332683467,1721440233820,-504.88431375,0.00016438,2]
[332683469,1721440233830,-562.81,0.00016438,2]
[332683471,1721440233840,-501.37578312,0.00016438,2]
[332683473,1721440233849,-500.0,0.00016438,2]
[332683475,1721440233859,-874.63,0.00016438,2]
[332683477,1721440233868,-500.0,0.00016438,2]
[332683479,1721440233878,-890.62,0.00016438,2]
[332683480,1721440233888,-285.94802361,0.00016438,2]
[332683494,1721440238457,-214.05197639,0.00016438,2]
[332683495,1721440238466,-198.75094562,0.00016438,2]
[332683499,1721440240492,-153.25210682,0.00016438,2]
[332683501,1721440240502,-659.23,0.00016438,2]
[332683502,1721440240512,-500.0,0.00016438,2]
[332683503,1721440240522,-500.0,0.00016438,2]
[332683504,1721440240531,-1881.13,0.00016438,2]
[332683505,1721440240541,-500.0,0.00016438,2]
[332683506,1721440240550,-500.0,0.00016438,2]
[332683507,1721440240559,-518.34434812,0.00016438,2]
[332683508,1721440240747,-150.99565188,0.00016438,2]
[332683509,1721440240756,-500.0,0.00016438,2]
[332683510,1721440240766,-500.0,0.00016438,2]
[332683511,1721440240775,-1978.73,0.00016438,2]
[332683512,1721440240785,-2337.58,0.00016438,2]
[332683513,1721440240795,-500.47467011,0.00016438,2]
[332683514,1721440240805,-315.25975602,0.00016438,2]
[332683548,1721440258175,947.955663,0.00013283,2]
[332683549,1721440258196,263.12112292,0.00013283,2]
[332683550,1721440258218,254.09855711,0.00013283,2]
[332683551,1721440258239,166.666666,0.00013283,2]
[332683552,1721440258259,184.33953463,0.00013283,2]
[332683553,1721440258280,250.0,0.00013283,2]
[332683554,1721440258302,3427.98781605,0.00013283,2]
[332683555,1721440281373,155.03385484,0.00013283,2]
[332683556,1721440282900,155.35281148,0.00013283,2]
[332683557,1721440325134,301.0,0.00025,120]
[332683558,1721440500347,150.71364408,0.00020281,30]
[332683559,1721440500387,150.71364408,0.00019875,120]
[332683567,1721440871032,150.72868836,0.00020469,30]
[332683568,1721440871069,150.72868836,0.0002006,120]
[332683569,1721441133168,-166.666666,0.00014795,2]
[332683570,1721441133190,-1217.68136226,0.0001507,2]
[332683571,1721441225223,30000.0,0.00025,120]
[332683572,1721441231143,-155.32199037,0.0001507,2]
[332683573,1721441231167,-2481.72422445,0.0001507,2]
[332683574,1721441232121,-2523.51520329,0.0001507,2]
[332683575,1721441232148,-214.4844372,0.00015265,2]
[332683576,1721441232171,-224.196724,0.00015367,2]
[332683577,1721441232193,-119.15727107,0.00015708,2]
[332683578,1721441236146,-224.77873089,0.00015708,2]
[332683579,1721441236170,-498.5801861,0.0001571,2]
[332683580,1721441244106,-547.15127784,0.0001571,2]
[332683581,1721441244129,-6.00399733,0.00015841,2]
[332683582,1721441247147,-146.99600267,0.00015841,2]
[332683583,1721441247170,-153.0,0.00015841,2]
[332683584,1721441247191,-154.3300796,0.00015941,2]
[332683585,1721441247213,-45.67391773,0.0001611,2]
[332683586,1721441254100,-251.63381084,0.0001611,2]
[332683587,1721441277719,150.72868836,0.00021058,30]
[332683588,1721441277760,150.72868836,0.00020637,120]
[332683631,1721441432819,-166.666666,0.00014795,2]
[332683633,1721441432829,-212.2716178,0.00015326,2]
[332683635,1721441432839,-224.196724,0.00016167,2]
[332683637,1721441432848,-513.49451255,0.00016189,2]
[332683645,1721441438735,-387.94727149,0.00016159,2]
[332683646,1721441438746,-500.61107229,0.00016159,2]
[332683647,1721441438756,-4789.95498615,0.00016189,2]
[332683648,1721441438765,-153.0,0.00016252,2]
[332683649,1721441438774,-306.1619792,0.000163,2]
[332683650,1721441438783,-263.82843208,0.00016322,2]
[332683651,1721441438792,-1605.66427737,0.00016338,2]
[332683652,1721441438802,-5663.17531043,0.000164,2]
[332683655,1721441441394,-11944.19229999,0.000164,2]
[332683682,1721441443887,-1877.55337611,0.000164,2]
[332683700,1721442346158,-166.666666,0.00014795,2]